lending/lending_fUSD_20240621
["ID","MTS","AMOUNT","RATE_DAILY","PERIOD"]
[330115719,1719011432285,-566.64,0.00019555,2]
[330115720,1719011432295,-719.12,0.0001957,2]
[330115721,1719011432305,-150.0,0.00019576,2]
[330115722,1719011432315,-668.84651426,0.00019577,2]
[330115723,1719011432327,-250.0,0.00019577,2]
[330115724,1719011432336,-264.43360224,0.00019577,2]
[330115725,1719011432345,-150.0,0.00019577,2]
[330115726,1719011432355,-150.0,0.00019577,2]
[330115727,1719011432369,-150.0,0.00019577,2]
[330115728,1719011432379,-150.0,0.00019577,2]
[330115729,1719011432389,-150.0,0.00019577,2]
[330115730,1719011432399,-150.0,0.00019577,2]
[330115731,1719011432409,-150.0,0.00019577,2]
[330115732,1719011432419,-150.0,0.00019577,2]
[330115733,1719011432431,-150.0,0.00019577,2]
[330115734,1719011432441,-150.0,0.00019577,2]
[330115735,1719011432450,-163.31593582,0.00019577,2]
[330115736,1719011432460,-499.99,0.0001959,2]
[330115738,1719011432469,-3036.65,0.00019591,2]
[330115740,1719011432479,-156.13,0.00019725,2]
[330115742,1719011432488,-250.0,0.00019729,2]
[330115744,1719011432498,-169.37,0.00019798,2]
[330115746,1719011432508,-150.99,0.00019802,2]
[330115748,1719011432517,-1000.0,0.00019811,2]
[330115750,1719011432526,-156.13,0.00019872,2]
[330115751,1719011432535,-551.1,0.00019926,2]
[330115752,1719011432545,-1830.0,0.00019929,2]
[330115753,1719011432554,-448.0,0.00019929,2]
[330115754,1719011432563,-442.0,0.00019929,2]
[330115755,1719011432573,-617.0,0.00019929,2]
[330115756,1719011432582,-166.0,0.00019929,2]
[330115757,1719011432590,-812.0,0.00019929,2]
[330115758,1719011432599,-156.13,0.00020019,2]
[330115759,1719011432608,-1303.0,0.00020058,2]
[330115760,1719011432617,-2411.0,0.00020058,2]
[330115761,1719011432626,-1983.0,0.00020058,2]
[330115762,1719011432635,-547.0,0.00020058,2]
[330115763,1719011432643,-3199.0,0.00020058,2]
[330115764,1719011432653,-156.13,0.00020166,2]
[330115765,1719011432662,-169.72,0.00020178,2]
[330115766,1719011432670,-156.13,0.00020312,2]
[330115768,1719011432679,-527.5,0.00020355,2]
[330115769,1719011432689,-150.0,0.00020355,2]
[330115771,1719011432698,-156.13,0.00020459,2]
[330115773,1719011432708,-500.0,0.00020547,4]
[330115774,1719011432717,-1117.34512683,0.00020579,2]
[330115775,1719011432727,-156.13,0.00020606,2]
[330115776,1719011432737,-150.0,0.00020715,2]
[330115777,1719011432747,-150.0,0.00020722,2]
[330115778,1719011432756,-150.0,0.00020728,2]
[330115779,1719011432766,-150.0,0.00020734,2]
[330115780,1719011432776,-150.0,0.00020736,2]
[330115781,1719011432787,-150.0,0.00020738,2]
[330115782,1719011432796,-150.0,0.00020739,2]
[330115783,1719011432806,-150.0,0.0002074,2]
[330115784,1719011432816,-150.0,0.00020743,2]
[330115785,1719011432826,-150.0,0.00020747,2]
[330115786,1719011432836,-1500.0,0.00020748,2]
[330115787,1719011432845,-150.0,0.0002075,2]
[330115788,1719011432855,-150.0,0.00020751,2]
[330115789,1719011432866,-150.0,0.00020751,2]
[330115790,1719011432875,-150.0,0.00020752,2]
[330115791,1719011432884,-150.0,0.00020752,2]
[330115792,1719011432894,-150.0,0.00020753,2]
[330115793,1719011432903,-156.13,0.00020753,2]
[330115794,1719011432913,-1500.0,0.00020755,2]
[330115795,1719011432922,-150.0,0.00020757,2]
[330115796,1719011432932,-150.0,0.0002076,2]
[330115797,1719011432941,-150.0,0.00020762,2]
[330115798,1719011432951,-1500.0,0.00020762,2]
[330115799,1719011432960,-150.0,0.00020763,2]
[330115800,1719011432969,-150.0,0.00020764,2]
[330115801,1719011432979,-150.0,0.00020765,2]
[330115802,1719011432988,-150.0,0.00020771,2]
[330115803,1719011432997,-1500.0,0.00020771,2]
[330115804,1719011433007,-150.0,0.00020773,2]
[330115805,1719011433017,-150.0,0.00020774,2]
[330115806,1719011433026,-1500.0,0.00020775,2]
[330115807,1719011433035,-150.0,0.00020776,2]
[330115808,1719011433045,-150.0,0.00020779,2]
[330115809,1719011433054,-150.0,0.00020779,2]
[330115810,1719011433315,-150.0,0.0002078,2]
[330115811,1719011433327,-150.0,0.00020785,2]
[330115812,1719011433338,-150.0,0.0002079,2]
[330115813,1719011433348,-150.0,0.00020791,2]
[330115814,1719011433360,-150.0,0.00020793,2]
[330115815,1719011433371,-150.0,0.00020794,2]
[330115816,1719011433381,-3245.5692,0.00020799,2]
[330115817,1719011433390,-150.0,0.00020799,2]
[330115818,1719011433400,-1500.0,0.00020799,2]
[330115819,1719011433410,-5355.70618717,0.000208,2]
[330115820,1719011433419,-150.0,0.00020802,2]
[330115821,1719011433428,-150.0,0.00020803,2]
[330115822,1719011433438,-1500.0,0.00020805,2]
[330115823,1719011433448,-150.0,0.00020806,2]
[330115824,1719011433460,-1500.0,0.00020806,2]
[330115825,1719011433470,-1500.0,0.00020807,2]
[330115826,1719011433479,-150.0,0.00020812,2]
[330115827,1719011433489,-150.0,0.00020813,2]
[330115828,1719011433499,-150.0,0.00020817,2]
[330115829,1719011433510,-150.0,0.00020819,2]
[330115830,1719011433520,-1500.0,0.0002082,2]
[330115831,1719011433530,-150.0,0.0002082,2]
[330115832,1719011433542,-500.0,0.00020821,4]
[330115833,1719011433552,-150.0,0.00020822,2]
[330115834,1719011433562,-150.0,0.00020827,2]
[330115835,1719011433574,-150.0,0.00020827,2]
[330115836,1719011433583,-150.0,0.00020827,2]
[330115837,1719011433592,-150.0,0.00020829,2]
[330115838,1719011433602,-150.0,0.0002083,2]
[330115839,1719011433611,-1000.0,0.00020831,2]
[330115840,1719011433622,-150.0,0.00020834,2]
[330115841,1719011433633,-150.0,0.00020836,2]
[330115842,1719011433643,-150.0,0.00020837,2]
[330115843,1719011433652,-150.0,0.00020838,2]
[330115844,1719011433662,-1500.0,0.00020838,2]
[330115845,1719011433672,-1500.0,0.0002084,2]
[330115846,1719011433682,-567.96,0.00020841,3]
[330115847,1719011433691,-150.0,0.00020842,2]
[330115848,1719011433701,-150.0,0.00020844,2]
[330115849,1719011433711,-150.0,0.00020848,2]
[330115850,1719011433720,-150.0,0.00020848,2]
[330115851,1719011433729,-150.0,0.00020848,2]
[330115852,1719011433741,-150.0,0.00020849,2]
[330115853,1719011433752,-150.0,0.0002085,2]
[330115854,1719011433763,-150.0,0.0002085,2]
[330115855,1719011433774,-150.0,0.00020851,2]
[330115856,1719011433784,-150.0,0.00020851,2]
[330115857,1719011433793,-150.0,0.00020851,2]
[330115858,1719011433804,-1500.0,0.00020856,2]
[330115859,1719011433815,-150.0,0.00020857,2]
[330115860,1719011433827,-150.0,0.00020858,2]
[330115861,1719011433835,-150.0,0.00020859,2]
[330115862,1719011433844,-150.0,0.00020862,2]
[330115863,1719011433859,-150.0,0.00020862,2]
[330115864,1719011433869,-150.0,0.00020867,2]
[330115865,1719011433880,-159.00439288,0.00020868,2]
[330115866,1719011433890,-150.0,0.00020869,2]
[330115867,1719011433901,-150.0,0.00020869,2]
[330115868,1719011433913,-1500.0,0.0002087,2]
[330115869,1719011433922,-150.0,0.00020871,2]
[330115870,1719011433932,-1500.0,0.00020871,2]
[330115871,1719011433941,-150.0,0.00020875,2]
[330115872,1719011433950,-638.0,0.00020876,2]
[330115873,1719011433959,-150.0,0.00020877,2]
[330115874,1719011433968,-150.0,0.00020877,2]
[330115875,1719011433978,-159.5926837,0.00020881,2]
[330115876,1719011433988,-1500.0,0.00020884,2]
[330115877,1719011433998,-150.0,0.00020887,2]
[330115878,1719011434007,-150.0,0.00020888,2]
[330115879,1719011434016,-150.0,0.00020891,2]
[330115880,1719011434026,-1500.0,0.00020892,2]
[330115881,1719011434035,-150.0,0.00020892,2]
[330115882,1719011434044,-300.0,0.00020892,2]
[330115883,1719011434054,-1500.0,0.00020892,2]
[330115884,1719011434063,-150.0,0.00020893,2]
[330115885,1719011434073,-1500.0,0.00020894,2]
[330115886,1719011434082,-158.80388924,0.00020894,2]
[330115887,1719011434091,-150.0,0.00020895,2]
[330115888,1719011434099,-150.0,0.00020896,2]
[330115889,1719011434108,-150.0,0.00020897,2]
[330115890,1719011434117,-150.0,0.00020898,2]
[330115891,1719011434126,-500.0,0.00020899,2]
[330115892,1719011434136,-10000.0,0.00020899,2]
[330115893,1719011434145,-1833.1778,0.00020899,2]
[330115894,1719011434155,-38483.03517097,0.00020899,2]
[330115895,1719011434165,-157.47409995,0.00020899,2]
[330115896,1719011434176,-177.27972599,0.00020899,2]
[330115897,1719011434185,-630.5367656,0.00020899,2]
[330115898,1719011434194,-344.36125782,0.00020899,2]
[330115899,1719011434206,-150.0,0.000209,2]
[330115900,1719011434216,-150.0,0.000209,2]
[330115901,1719011434226,-300.0,0.00020903,2]
[330115902,1719011434235,-150.0,0.00020905,2]
[330115903,1719011434244,-150.0,0.00020906,2]
[330115904,1719011434254,-150.0,0.00020908,2]
[330115905,1719011434264,-150.0,0.00020908,2]
[330115906,1719011434276,-1106.80147207,0.00020909,2]
[330115907,1719011434287,-2014.81106,0.0002091,2]
[330115908,1719011434296,-300.0,0.00020911,2]
[330115909,1719011434306,-150.0,0.00020913,2]
[330115910,1719011434317,-150.0,0.00020914,2]
[330115911,1719011434327,-1500.0,0.00020914,2]
[330115912,1719011434336,-150.0,0.00020916,2]
[330115913,1719011434345,-315.35119243,0.00020918,2]
[330115914,1719011434354,-1500.0,0.00020919,2]
[330115915,1719011434368,-150.0,0.00020919,2]
[330115916,1719011434378,-150.0,0.00020921,2]
[330115917,1719011434387,-150.0,0.00020922,2]
[330115918,1719011434397,-150.0,0.00020926,2]
[330115919,1719011434408,-1500.0,0.00020932,2]
[330115920,1719011434417,-150.0,0.00020933,2]
[330115921,1719011434426,-150.0,0.00020934,2]
[330115922,1719011434435,-150.0,0.00020936,2]
[330115923,1719011434447,-150.0,0.00020936,2]
[330115924,1719011434456,-1500.0,0.00020936,2]
[330115925,1719011434465,-1500.0,0.00020938,2]
[330115926,1719011434475,-1000.0,0.0002094,2]
[330115927,1719011434484,-150.0,0.0002094,2]
[330115928,1719011434493,-1500.0,0.00020941,2]
[330115929,1719011434502,-1500.0,0.00020941,2]
[330115930,1719011434512,-364.67222398,0.00020941,2]
[330115931,1719011434521,-155.0,0.00020941,2]
[330115932,1719011434531,-150.0,0.00020944,2]
[330115933,1719011434540,-150.0,0.00020947,2]
[330115934,1719011434549,-155.0,0.00020947,2]
[330115935,1719011434558,-150.0,0.00020948,2]
[330115936,1719011434567,-150.0,0.00020948,2]
[330115937,1719011434577,-150.0,0.00020949,2]
[330115938,1719011434586,-150.0,0.0002095,2]
[330115939,1719011434595,-1500.0,0.00020952,2]
[330115940,1719011434605,-150.0,0.00020953,2]
[330115941,1719011434614,-150.0,0.00020953,2]
[330115942,1719011434623,-158.28745137,0.00020953,2]
[330115943,1719011434631,-1500.0,0.00020954,2]
[330115944,1719011434641,-150.0,0.00020955,2]
[330115945,1719011434649,-150.0,0.00020955,2]
[330115946,1719011434658,-150.0,0.00020956,2]
[330115947,1719011434667,-1500.0,0.00020962,2]
[330115948,1719011434677,-150.0,0.00020963,2]
[330115949,1719011434686,-1500.0,0.00020963,2]
[330115950,1719011434695,-461.04796381,0.00020963,2]
[330115951,1719011434704,-1500.0,0.00020964,2]
[330115952,1719011434713,-150.0,0.00020967,2]
[330115953,1719011434723,-918.80279174,0.00020967,2]
[330115954,1719011434732,-209.56877311,0.00020967,2]
[330115955,1719011434744,-150.0,0.00020971,2]
[330115956,1719011434753,-1500.0,0.00020972,2]
[330115957,1719011434763,-226.10887429,0.00020978,2]
[330115958,1719011434773,-150.0,0.00020978,2]
[330115959,1719011434783,-150.0,0.00020979,2]
[330115960,1719011434792,-3198.15287891,0.00020979,2]
[330115961,1719011434801,-150.0,0.0002098,2]
[330115962,1719011434811,-1742.72547171,0.0002098,2]
[330115963,1719011434819,-321.76208024,0.0002098,2]
[330115964,1719011434828,-150.0,0.00020981,2]
[330115965,1719011434838,-150.0,0.00020983,2]
[330115966,1719011434848,-150.0,0.00020984,2]
[330115967,1719011434858,-715.47154282,0.00020985,2]
[330115968,1719011434867,-150.0,0.00020986,2]
[330115969,1719011434876,-150.0,0.00020987,2]
[330115970,1719011434886,-1500.0,0.00020988,2]
[330115971,1719011434895,-216.18844803,0.00020989,2]
[330115972,1719011434907,-150.0,0.00020989,2]
[330115973,1719011434916,-150.0,0.0002099,2]
[330115974,1719011434925,-300.0,0.00020991,2]
[330115975,1719011434935,-1500.0,0.00020992,2]
[330115976,1719011434945,-155.0,0.00020995,2]
[330115977,1719011434955,-498.49319551,0.00020995,2]
[330115978,1719011434965,-161.26897551,0.00020995,2]
[330115979,1719011434976,-20223.2044893,0.00020997,2]
[330115980,1719011434986,-519.79555506,0.00020997,2]
[330115981,1719011434998,-194.06319605,0.00020998,2]
[330115982,1719011435008,-224.89846155,0.00020998,2]
[330115983,1719011435017,-1000.0,0.00020998,5]
[330115984,1719011435029,-660513.56878393,0.00020999,2]
[330115985,1719011435046,-407.79069299,0.00020999,2]
[330115986,1719011435130,-893.88077685,0.00020999,2]
[330115987,1719011435147,-463.7839458,0.00020999,2]
[330115988,1719011435158,-5567.2,0.00020999,2]
[330115989,1719011435170,-1233.01356435,0.00020999,2]
[330115993,1719011438349,-224.89846154,0.00020998,2]
[330115994,1719011438363,-5819.4855593,0.00020999,2]
[330115995,1719011438375,-132256.00000022,0.00020999,2]
[330115996,1719011438387,-10086.79046966,0.00020999,2]
[330115997,1719011438399,-19448.15347899,0.00020999,2]
[330116013,1719011440435,-568.0,0.00020862,2]
[330116014,1719011440448,-1990.68997384,0.00020999,2]
[330116015,1719011440460,-17321.24999998,0.00020999,2]
[330116016,1719011440471,-882.68499999,0.00020999,2]
[330116017,1719011440482,-311890.45454811,0.00020999,2]
[330116018,1719011440614,-385.51113534,0.00020999,2]
[330116019,1719011440691,-128575.07774437,0.00020999,2]
[330116020,1719011440702,-66346.02917856,0.00020999,2]
[330116021,1719011440714,-265.1286,0.00020999,2]
[330116030,1719011446488,-250.0,0.0002051,2]
[330116031,1719011446498,-392.8,0.00020999,2]
[330116032,1719011446510,-617.72949695,0.00020999,2]
[330116037,1719011515908,157.062207,0.00026,61]
[330116038,1719011891551,1000.0,0.00025,30]
[330116039,1719011895508,1000.0,0.00025,30]
[330116040,1719011905089,1000.0,0.00025,30]
[330116041,1719011918606,544.0,0.00025,30]
[330116087,1719012632274,-168.44,0.00015518,2]
[330116088,1719012632284,-187.0,0.00015556,2]
[330116089,1719012632293,-219.83790771,0.00017427,2]
[330116091,1719012632306,-316.12209229,0.00017427,2]
[330116093,1719012632315,-133.87790771,0.00019152,2]
[330116095,1719012632559,-1202.81544629,0.00019152,2]
[330116096,1719012632568,-782.94,0.00019249,2]
[330116097,1719012632578,-250.0,0.00019259,2]
[330116098,1719012632588,-300.0,0.00019267,2]
[330116099,1719012632597,-150.0,0.00019267,2]
[330116100,1719012632606,-11920.36,0.00019268,2]
[330116101,1719012632616,-608.38,0.00019268,2]
[330116102,1719012632625,-200.0,0.00019273,2]
[330116103,1719012632635,-169.37,0.000193,2]
[330116104,1719012632644,-166.83,0.0001946,2]
[330116105,1719012632654,-221.79,0.00019624,2]
[330116106,1719012632664,-535.96,0.00019691,2]
[330116107,1719012632673,-1000.0,0.00019725,2]
[330116108,1719012632682,-400.0,0.000199,7]
[330116109,1719012632691,-11691.42290878,0.00019989,2]
[330116110,1719012632701,-1000.0,0.00019998,2]
[330116111,1719012632710,-500.0,0.00019999,2]
[330116112,1719012632720,-500.0,0.00019999,2]
[330116113,1719012632729,-500.0,0.00019999,2]
[330116114,1719012632738,-500.0,0.00019999,2]
[330116115,1719012632752,-500.0,0.00019999,2]
[330116116,1719012632762,-500.0,0.00019999,2]
[330116117,1719012632777,-500.0,0.00019999,2]
[330116118,1719012632786,-500.0,0.00019999,2]
[330116119,1719012632795,-500.0,0.00019999,2]
[330116120,1719012632805,-500.0,0.00019999,2]
[330116121,1719012632814,-500.0,0.00019999,2]
[330116122,1719012632826,-500.0,0.00019999,2]
[330116123,1719012632835,-500.0,0.00019999,2]
[330116124,1719012632845,-500.0,0.00019999,2]
[330116125,1719012632856,-500.0,0.00019999,2]
[330116126,1719012632865,-500.0,0.00019999,2]
[330116127,1719012632875,-500.0,0.00019999,2]
[330116128,1719012632885,-500.0,0.00019999,2]
[330116129,1719012632895,-500.0,0.00019999,2]
[330116130,1719012632904,-500.0,0.00019999,2]
[330116131,1719012632914,-500.0,0.00019999,2]
[330116132,1719012632923,-500.0,0.00019999,2]
[330116133,1719012632932,-500.0,0.00019999,2]
[330116134,1719012632942,-500.0,0.00019999,2]
[330116135,1719012632953,-500.0,0.00019999,2]
[330116136,1719012632964,-500.0,0.00019999,2]
[330116137,1719012632974,-500.0,0.00019999,2]
[330116138,1719012632983,-500.0,0.00019999,2]
[330116139,1719012632993,-500.0,0.00019999,2]
[330116140,1719012633003,-500.0,0.00019999,2]
[330116141,1719012633013,-500.0,0.00019999,2]
[330116142,1719012633025,-500.0,0.00019999,2]
[330116143,1719012633035,-500.0,0.00019999,2]
[330116144,1719012633046,-500.0,0.00019999,2]
[330116145,1719012633056,-500.0,0.00019999,2]
[330116146,1719012633066,-500.0,0.00019999,2]
[330116147,1719012633075,-500.0,0.00019999,2]
[330116148,1719012633085,-500.0,0.00019999,2]
[330116149,1719012633095,-500.0,0.00019999,2]
[330116150,1719012633104,-500.0,0.00019999,2]
[330116151,1719012633114,-500.0,0.00019999,2]
[330116152,1719012633124,-500.0,0.00019999,2]
[330116153,1719012633134,-500.0,0.00019999,2]
[330116154,1719012633143,-500.0,0.00019999,2]
[330116155,1719012633153,-500.0,0.00019999,2]
[330116156,1719012633163,-500.0,0.00019999,2]
[330116157,1719012633174,-500.0,0.00019999,2]
[330116158,1719012633183,-274.74,0.00019999,2]
[330116159,1719012633193,-500.0,0.00019999,2]
[330116160,1719012633203,-500.0,0.00019999,2]
[330116161,1719012633213,-500.0,0.00019999,2]
[330116162,1719012633225,-500.0,0.00019999,2]
[330116163,1719012633235,-500.0,0.00019999,2]
[330116164,1719012633246,-500.0,0.00019999,2]
[330116165,1719012633255,-500.0,0.00019999,2]
[330116166,1719012633265,-500.0,0.00019999,2]
[330116167,1719012633276,-500.0,0.00019999,2]
[330116168,1719012633285,-500.0,0.00019999,2]
[330116169,1719012633295,-500.0,0.00019999,2]
[330116170,1719012633306,-500.0,0.00019999,2]
[330116171,1719012633315,-500.0,0.00019999,2]
[330116172,1719012633326,-500.0,0.00019999,2]
[330116173,1719012633336,-500.0,0.00019999,2]
[330116175,1719012633345,-500.0,0.00019999,2]
[330116177,1719012633355,-500.0,0.00019999,2]
[330116178,1719012633365,-500.0,0.00019999,2]
[330116179,1719012633376,-500.0,0.00019999,2]
[330116180,1719012633390,-500.0,0.00019999,2]
[330116181,1719012633400,-500.0,0.00019999,2]
[330116182,1719012633409,-500.0,0.00019999,2]
[330116183,1719012633422,-500.0,0.00019999,2]
[330116184,1719012633432,-500.0,0.00019999,2]
[330116185,1719012633442,-500.0,0.00019999,2]
[330116186,1719012633453,-500.0,0.00019999,2]
[330116187,1719012633462,-500.0,0.00019999,2]
[330116188,1719012633472,-500.0,0.00019999,2]
[330116189,1719012633482,-500.0,0.00019999,2]
[330116190,1719012633492,-500.0,0.00019999,2]
[330116191,1719012633503,-500.0,0.00019999,2]
[330116192,1719012633513,-513.6,0.00019999,2]
[330116193,1719012633525,-800.0,0.0002,7]
[330116194,1719012633535,-1200.0,0.000201,7]
[330116195,1719012633545,-1600.0,0.000202,7]
[330116196,1719012633555,-2000.0,0.000203,7]
[330116197,1719012633566,-400.0,0.000204,7]
[330116198,1719012633577,-400.0,0.000205,7]
[330116199,1719012633588,-214.88378085,0.00020547,4]
[330116200,1719012633598,-664.93707705,0.00020579,2]
[330116201,1719012633616,-461.81773749,0.00020579,2]
[330116202,1719012633627,-400.0,0.000206,7]
[330116203,1719012633636,-400.0,0.000207,7]
[330116204,1719012633647,-716.0,0.000208,7]
[330116205,1719012633657,-200.0,0.0002083,2]
[330116206,1719012633666,-1000.0,0.0002083,2]
[330116207,1719012633675,-200.0,0.00020831,2]
[330116208,1719012633684,-1000.0,0.00020831,2]
[330116209,1719012633694,-3032.524,0.00020899,2]
[330116210,1719012633704,-7500.0,0.00020899,2]
[330116211,1719012633713,-12948.72294315,0.00020899,2]
[330116212,1719012633723,-1000.0,0.000209,3]
[330116213,1719012633733,-1000.0,0.000209,4]
[330116214,1719012633743,-982.1430954,0.00020998,2]
[330116215,1719012633752,-4534.9194872,0.00020998,2]
[330116216,1719012633762,-269.35737406,0.00020998,2]
[330116217,1719012633774,-500.0,0.00020998,2]
[330116218,1719012633787,-500.0,0.00020998,2]
[330116219,1719012633796,-500.0,0.00020998,2]
[330116220,1719012633806,-400.0,0.00020998,2]
[330116221,1719012633817,-500.0,0.00020998,2]
[330116222,1719012633826,-500.0,0.00020998,2]
[330116223,1719012633835,-500.0,0.00020998,2]
[330116224,1719012633845,-500.0,0.00020998,2]
[330116225,1719012633856,-500.0,0.00020998,2]
[330116226,1719012633867,-500.0,0.00020998,2]
[330116227,1719012633876,-590.55210863,0.00020998,2]
[330116228,1719012633886,-500.0,0.00020998,2]
[330116229,1719012633895,-500.0,0.00020998,2]
[330116230,1719012633905,-500.0,0.00020998,2]
[330116231,1719012633914,-14583.5462845,0.00020998,2]
[330116232,1719012633924,-512.0,0.00020999,2]
[330116233,1719012633934,-59958.46861192,0.00020999,2]
[330116234,1719012633946,-736.70073511,0.00020999,2]
[330116235,1719012633958,-791.24822385,0.00020999,2]
[330116236,1719012633970,-422.57359696,0.00020999,2]
[330116237,1719012638490,-484.29211093,0.00020999,2]
[330116238,1719012638808,-13237.32090486,0.00020999,2]
[330116239,1719012638822,-32080.37025173,0.00020999,2]
[330116240,1719012638834,-950.76156786,0.00020999,2]
[330116244,1719012641247,-682.15741014,0.00020999,2]
[330116245,1719012641259,-1006.81786399,0.00020999,2]
[330116246,1719012641438,-21663.56539458,0.00020999,2]
[330116247,1719012641449,-481.5660385,0.00020999,2]
[330116248,1719012641461,-401.45467657,0.00020999,2]
[330116249,1719012641474,-500.0008285,0.00020999,2]
[330116250,1719012641644,-458.87624204,0.00020999,2]
[330116276,1719012644231,-5307.1511364,0.00020999,2]
[330116277,1719012644243,-360.05732044,0.00020999,2]
[330116278,1719012644275,-19953.98827768,0.00020999,2]
[330116279,1719012644289,-543.15227626,0.00020999,2]
[330116280,1719012644700,-771.71644286,0.00020999,2]
[330116281,1719012644711,-752.72,0.00020999,2]
[330116282,1719012644723,-18835.69372658,0.00020999,2]
[330116283,1719012644735,-3529.30187106,0.00020999,2]
[330116286,1719012646803,-168.44,0.00016456,2]
[330116287,1719012646817,-310974.55665711,0.00020999,2]
[330116288,1719012646828,-13281.40867131,0.00020999,2]
[330116289,1719012646839,-316.01403212,0.00020999,2]
[330116290,1719012646852,-962.65997474,0.00020999,2]
[330116291,1719012646863,-735.73500075,0.00020999,2]
[330116292,1719012646874,-2176.89212476,0.00020999,2]
[330116293,1719012646886,-349.999995,0.00020999,2]
[330116298,1719012796170,200.0,0.00025663,120]
[330116299,1719012800452,1000.0,0.00025663,120]
[330116300,1719012803410,200.0,0.00025328,120]
[330116301,1719012803797,200.0,0.00025928,120]
[330116302,1719012870641,231.36,0.00020989,30]
[330116303,1719012871199,150.5,0.00020989,30]
[330116304,1719012871423,1291.0,0.00020989,30]
[330116305,1719012871675,150.5,0.00020979,30]
[330116306,1719012871957,1291.0,0.00020979,30]
[330116307,1719012872153,150.5,0.00020969,30]
[330116308,1719012872832,1291.0,0.00020969,30]
[330116309,1719012873035,150.5,0.00020989,30]
[330116310,1719012873129,1291.0,0.00020989,30]
[330116311,1719012873236,244.0,0.00020979,30]
[330116312,1719012873414,1291.0,0.00020979,30]
[330116313,1719012874478,1291.0,0.00020969,30]
[330116314,1719012874592,1291.0,0.00020989,30]
[330116315,1719012875046,1291.0,0.00020979,30]
[330116316,1719012875634,1291.0,0.00020989,30]
[330116317,1719012876214,1292.5,0.00020979,30]
[330116318,1719012990764,785.0,0.00020989,30]
[330116319,1719012991231,785.0,0.00020979,30]
[330116320,1719012991735,785.0,0.00020969,30]
[330116321,1719012992581,785.0,0.00020989,30]
[330116322,1719012992809,785.0,0.00020979,30]
[330116323,1719012993456,785.0,0.00020969,30]
[330116324,1719012993862,785.0,0.00020989,30]
[330116325,1719012994333,785.0,0.00020979,30]
[330116326,1719012994800,785.0,0.00020989,30]
[330116328,1719012995295,794.76,0.00020979,30]
[330116329,1719013020240,-150.0,0.00012299,2]
[330116330,1719013020263,-227801.07940524,0.000123,2]
[330116331,1719013023014,300.0,0.00012299,2]
[330116333,1719013053460,1961.81,0.00025,30]
[330116334,1719013763181,-163.06,0.00015481,2]
[330116335,1719013763202,-167.6,0.00015624,2]
[330116342,1719013832193,-518.32,0.00017675,2]
[330116343,1719013832204,-175.52746534,0.00019039,2]
[330116344,1719013832254,-280.83854349,0.00019039,2]
[330116345,1719013832265,-535.511,0.00019039,2]
[330116346,1719013832276,-1514.79151375,0.00019039,2]
[330116347,1719013832322,-4454.33147742,0.00019039,2]
[330116348,1719013832331,-300.0,0.00019138,2]
[330116349,1719013832340,-3324.25248522,0.00019139,2]
[330116350,1719013832351,-1256.0721124,0.00019139,2]